bitfinex-derivatives/quotes_BTCF0:USTF0_20250814
["timestamp","ask_amount","ask_price","bid_price","bid_amount"]
[1755185491542,0.04503,118250.0,118240.0,2.09521953]
[1755185491739,0.04703,118260.0,118240.0,2.26126783]
[1755185491934,0.04503,118260.0,118250.0,1.06777383]
[1755185492340,0.15503,118260.0,118250.0,1.06777383]
[1755185492841,0.04503,118260.0,118250.0,0.70697383]
[1755185493049,0.04503,118260.0,118250.0,1.06777383]
[1755185493340,0.04703,118260.0,118250.0,0.3648]
[1755185493544,0.04703,118260.0,118250.0,1.15329243]
[1755185493935,0.02626715,118260.0,118250.0,1.15329243]
[1755185494340,0.002,118260.0,118250.0,1.15329243]
[1755185494841,0.002,118260.0,118250.0,0.4493186]
[1755185495040,0.002,118260.0,118250.0,1.15329243]
[1755185495247,0.04703,118260.0,118250.0,0.4493186]
[1755185495449,0.04703,118260.0,118250.0,1.15329243]
[1755185495652,0.04703,118260.0,118250.0,0.4493186]
[1755185496143,0.002,118260.0,118250.0,1.15336127]
[1755185496351,0.002,118260.0,118250.0,1.15416127]
[1755185496543,0.002,118260.0,118250.0,1.15336127]
[1755185496738,0.112,118260.0,118250.0,1.15336127]
[1755185496938,0.112,118260.0,118250.0,2.09476127]
[1755185497145,0.112,118260.0,118250.0,1.15336127]
[1755185497341,0.112,118260.0,118250.0,2.09472127]
[1755185498754,0.112,118260.0,118250.0,1.39074744]
[1755185499052,0.112,118260.0,118250.0,2.09472127]
[1755185500652,0.112,118260.0,118250.0,1.39074744]
[1755185500851,0.002,118260.0,118250.0,2.09472127]
[1755185501050,0.002,118260.0,118250.0,1.39074744]
[1755185501451,0.002,118260.0,118250.0,2.09472127]
[1755185501951,0.002,118260.0,118250.0,1.39074744]
[1755185502148,0.002,118260.0,118250.0,2.09472127]
[1755185503051,0.22369301,118280.0,118270.0,0.0893141]
[1755185503247,0.07647011,118280.0,118270.0,2.09584793]
[1755185503753,0.07647011,118280.0,118270.0,1.3918341]
[1755185504149,0.07647011,118280.0,118270.0,1.3917541]
[1755185504351,0.24793011,118280.0,118270.0,1.3917541]
[1755185504652,1.41996084,118280.0,118260.0,0.3608]
[1755185504847,0.59361171,118280.0,118270.0,0.94064]
[1755185505152,0.2723741,118270.0,118250.0,0.61542464]
[1755185505354,0.47925,118260.0,118250.0,0.44699744]
[1755185505552,0.5034871,118260.0,118250.0,1.38751744]
[1755185505751,0.0692671,118260.0,118250.0,2.09249127]
[1755185505950,0.49245301,118280.0,118270.0,0.086114]
[1755185506149,0.58668875,118280.0,118270.0,0.94209]
[1755185506451,0.67118565,118280.0,118270.0,0.94209]
[1755185506648,1.03198565,118280.0,118270.0,0.94209]
[1755185506948,1.02998565,118280.0,118270.0,0.94209]
[1755185507649,0.5637613,118260.0,118250.0,0.36186884]
[1755185507845,0.5637613,118260.0,118250.0,0.94138884]
[1755185507846,1.40277087,118260.0,118250.0,0.94138884]
[1755185508042,1.40197087,118260.0,118250.0,0.94138884]
[1755185508241,1.40277087,118260.0,118250.0,0.00106884]
[1755185508441,1.57570087,118260.0,118250.0,0.00106884]
[1755185508642,0.1690448,118250.0,118220.0,0.0845368]
[1755185508848,0.6916756,118240.0,118230.0,0.00107]
[1755185509051,0.3308827,118230.0,118220.0,0.00107]
[1755185509251,0.24635,118220.0,118210.0,0.36187]
[1755185509459,0.3759199,118220.0,118210.0,1.30207]
[1755185509655,0.3759199,118220.0,118210.0,1.30203]
[1755185510161,0.3759199,118220.0,118210.0,0.94123]
[1755185510554,0.375927,118210.0,118200.0,0.36187]
[1755185510758,0.395927,118210.0,118200.0,1.30096]
[1755185511158,0.395927,118210.0,118200.0,0.94123]
[1755185511757,0.398927,118210.0,118200.0,0.94223]
[1755185511958,0.31438,118210.0,118200.0,1.3875843]
[1755185512150,0.1295595,118240.0,118230.0,0.00107]
[1755185512348,0.06942807,118240.0,118230.0,2.09033663]
[1755185512549,0.02439807,118240.0,118230.0,2.09133663]
[1755185512859,0.02439807,118240.0,118230.0,2.09213663]
[1755185513260,0.02439807,118240.0,118230.0,2.09133663]
[1755185513961,0.02439807,118240.0,118230.0,2.09213663]
[1755185514161,0.02230096,118240.0,118230.0,2.43034983]
[1755185514356,0.06763938,118260.0,118250.0,0.0853185]
[1755185514561,0.01877938,118260.0,118250.0,2.08997233]
[1755185514761,0.01877938,118260.0,118250.0,2.08797233]
[1755185515366,0.06763938,118260.0,118250.0,1.7439985]
[1755185515559,0.01877938,118260.0,118250.0,2.44789233]
[1755185516061,0.01877938,118260.0,118250.0,1.7449185]
[1755185516062,0.06963938,118260.0,118250.0,1.7449185]
[1755185516365,0.06963938,118260.0,118250.0,2.44589233]
[1755185516565,0.06963938,118260.0,118250.0,1.7419185]
[1755185516859,0.06963938,118260.0,118250.0,2.44589233]
[1755185517362,0.06963938,118260.0,118250.0,1.50609233]
[1755185517560,0.06963938,118260.0,118250.0,2.44577233]
[1755185517762,0.06863938,118260.0,118250.0,2.44777233]
[1755185518260,0.08535195,118260.0,118250.0,2.44557233]
[1755185518459,0.06757257,118260.0,118250.0,1.9139265]
[1755185518765,0.06757257,118260.0,118250.0,2.61790033]
[1755185519061,0.06757257,118260.0,118250.0,1.50909233]
[1755185519259,0.11643257,118260.0,118250.0,1.51009233]
[1755185519454,0.11643257,118260.0,118250.0,2.44933233]
[1755185519857,0.11643257,118260.0,118250.0,1.50909233]
[1755185520057,0.11643257,118260.0,118250.0,1.51109233]
[1755185520269,0.11643257,118260.0,118250.0,2.45025233]
[1755185520455,0.11543257,118260.0,118250.0,2.44625233]
[1755185520656,0.11643257,118260.0,118250.0,2.44925233]
[1755185521067,0.11643257,118260.0,118250.0,1.7422785]
[1755185521260,0.11643257,118260.0,118250.0,2.45025233]
[1755185521860,0.11643257,118260.0,118250.0,1.51109233]
[1755185522162,0.20094377,118260.0,118250.0,1.43157383]
[1755185522366,0.31094377,118260.0,118250.0,2.36945383]
[1755185522667,0.31094377,118260.0,118250.0,1.66548]
[1755185522860,0.46845257,118260.0,118250.0,0.8111183]
[1755185523059,0.22643257,118260.0,118250.0,0.8111183]
[1755185523254,0.22643257,118260.0,118250.0,1.7498783]
[1755185523457,0.06757257,118260.0,118250.0,2.45385213]
[1755185523662,0.17757257,118260.0,118250.0,2.45385213]
[1755185524267,0.22643257,118260.0,118250.0,2.45385213]
[1755185524660,0.17757257,118260.0,118250.0,2.45385213]
[1755185526067,0.1085737,118280.0,118270.0,0.084504]
[1755185526268,0.07320042,118280.0,118270.0,2.08767783]
[1755185526573,0.59347732,118280.0,118270.0,1.2992]
[1755185526777,0.04886,118270.0,118260.0,0.5298115]
[1755185526973,0.39458042,118270.0,118260.0,1.4681315]
[1755185527670,0.57812297,118270.0,118260.0,1.4680515]
[1755185527867,0.57812297,118270.0,118250.0,0.3608]
[1755185527868,0.3271313,118260.0,118250.0,0.3608]
[1755185528075,0.59349172,118260.0,118250.0,1.3834384]
[1755185528262,0.59349172,118260.0,118250.0,1.29892]
[1755185528463,0.50898042,118260.0,118250.0,1.3834384]
[1755185528877,0.50898042,118260.0,118250.0,1.29892]
[1755185529063,0.61898042,118260.0,118250.0,1.3834384]
[1755185529467,0.18320042,118260.0,118250.0,2.08741223]
[1755185529759,0.02434042,118260.0,118250.0,2.08741223]
[1755185529968,0.07320042,118260.0,118250.0,2.08841223]
[1755185530673,0.07420042,118260.0,118250.0,1.3884384]
[1755185531068,0.07420042,118260.0,118250.0,0.4503184]
[1755185531268,0.35796042,118260.0,118250.0,1.3881584]
[1755185531567,0.59998042,118260.0,118250.0,1.30344]
[1755185531768,0.59998042,118260.0,118250.0,1.3879583]
[1755185532584,0.59998042,118260.0,118250.0,1.30344]
[1755185532774,0.59998042,118260.0,118250.0,1.3879583]
[1755185532965,0.68449152,118260.0,118250.0,1.30344]
[1755185533168,0.59998042,118260.0,118250.0,1.3879583]
[1755185533587,0.59998042,118260.0,118250.0,0.4503183]
[1755185533878,0.59998042,118260.0,118250.0,1.3878783]
[1755185534081,0.68449152,118260.0,118250.0,1.30336]
[1755185534379,1.38926535,118260.0,118250.0,0.005]
[1755185534575,1.44897905,118260.0,118250.0,0.94224]
[1755185534775,0.74500522,118260.0,118250.0,0.94224]
[1755185535697,0.74420522,118260.0,118250.0,0.94224]
[1755185535896,0.65969412,118260.0,118250.0,1.30304]
[1755185536080,0.41767412,118260.0,118250.0,1.30304]
[1755185536287,0.59998042,118260.0,118250.0,1.30304]
[1755185536591,0.65954666,118260.0,118250.0,1.3875583]
[1755185537282,0.30312666,118260.0,118250.0,1.3875583]
[1755185537485,0.21312666,118260.0,118250.0,1.3875583]
[1755185538095,0.15356042,118260.0,118250.0,1.3875583]
[1755185538488,0.32675042,118260.0,118250.0,1.3875583]
[1755185538693,0.39558042,118260.0,118250.0,1.3875583]
[1755185538885,0.59449162,118260.0,118250.0,1.30304]
[1755185539088,0.50998042,118260.0,118250.0,1.30304]
[1755185539290,0.62998042,118260.0,118250.0,1.30304]
[1755185539494,0.71449162,118260.0,118250.0,1.30304]
[1755185540791,0.62998042,118260.0,118250.0,1.3875584]
[1755185540995,0.62998042,118260.0,118250.0,1.30304]
[1755185540996,0.71449172,118260.0,118250.0,1.30304]
[1755185541196,0.71449172,118260.0,118250.0,0.94224]
[1755185541391,0.71449172,118260.0,118250.0,1.30304]
[1755185542088,0.71449172,118260.0,118250.0,0.005]
[1755185542288,1.41846555,118260.0,118250.0,0.94144]
[1755185542486,1.41846555,118260.0,118250.0,0.94124]
[1755185542786,0.71449172,118260.0,118250.0,0.9412]
[1755185545392,0.62998042,118260.0,118250.0,1.0257185]
[1755185545591,0.62998042,118260.0,118250.0,0.9412]
[1755185545797,0.71449172,118260.0,118250.0,0.9412]
[1755185545999,0.62998042,118260.0,118250.0,0.9412]
[1755185546300,0.71449162,118260.0,118250.0,0.9412]
[1755185548196,0.38796042,118260.0,118250.0,1.0257184]
[1755185548700,0.19420042,118260.0,118250.0,1.72969223]
[1755185548998,0.19420042,118260.0,118250.0,2.09049223]
[1755185549302,0.07249042,118260.0,118250.0,2.09049223]
[1755185549501,0.02534042,118260.0,118250.0,2.09129223]
[1755185550392,0.02534042,118260.0,118250.0,2.09856113]
[1755185551704,0.07249042,118260.0,118250.0,2.09049223]
[1755185551899,0.07249042,118260.0,118250.0,2.097955]
[1755185552100,0.07249042,118260.0,118250.0,2.09049223]
[1755185553608,0.02534042,118260.0,118250.0,2.09887087]
[1755185554397,0.06914255,118270.0,118250.0,3.6083048]
[1755185554603,0.024312,118270.0,118260.0,1.15008503]
[1755185555003,0.024312,118270.0,118260.0,1.31919702]
[1755185555402,0.01861653,118280.0,118260.0,2.27669985]
[1755185555603,0.01861653,118280.0,118270.0,2.08451793]
[1755185556609,0.04715,118300.0,118290.0,0.0844898]
[1755185556905,0.01858342,118310.0,118300.0,0.0844827]
[1755185557106,0.13214957,118310.0,118300.0,1.14925653]
[1755185557303,0.06573342,118310.0,118300.0,1.14825653]
[1755185558011,0.06573342,118310.0,118300.0,1.14925653]
[1755185558213,0.01858342,118310.0,118300.0,1.14925653]
[1755185558410,0.2325322,118330.0,118320.0,0.0844683]
[1755185558716,0.4930422,118330.0,118320.0,2.08316213]
[1755185559013,0.56052528,118330.0,118320.0,1.14924213]
[1755185559207,0.50052528,118330.0,118320.0,2.08308213]
[1755185559615,0.50152528,118330.0,118320.0,2.08608213]
[1755185559908,0.55152528,118330.0,118320.0,2.08604213]
[1755185560113,0.50052528,118330.0,118320.0,2.08304213]
[1755185560315,0.50152528,118330.0,118320.0,2.08804213]
[1755185561010,0.50152528,118330.0,118320.0,1.15424213]
[1755185561213,0.50152528,118330.0,118320.0,2.08760213]
[1755185561413,0.56885576,118330.0,118320.0,2.08756213]
[1755185561618,0.58885576,118330.0,118320.0,1.3835883]
[1755185562616,0.648422,118330.0,118320.0,1.3835883]
[1755185562814,0.648422,118330.0,118320.0,1.29912]
[1755185563116,0.58885576,118330.0,118320.0,1.3835883]
[1755185563317,0.648422,118330.0,118320.0,1.3835883]
[1755185563716,0.648422,118330.0,118320.0,1.3832683]
[1755185563917,0.57027356,118330.0,118320.0,1.3832683]
[1755185564519,0.57027356,118330.0,118320.0,1.3831483]
[1755185564815,0.57027356,118330.0,118320.0,1.72632213]
[1755185565021,0.57027356,118330.0,118320.0,2.08712213]
[1755185565515,0.57027356,118330.0,118320.0,0.70897383]
[1755185565721,0.65473476,118330.0,118320.0,0.93776]
[1755185566810,0.57027356,118330.0,118320.0,0.93776]
[1755185567005,0.57027356,118330.0,118320.0,1.0222283]
[1755185567212,0.57027356,118330.0,118320.0,1.3830283]
[1755185567411,0.5942617,118330.0,118320.0,1.3830283]
[1755185567611,0.5942617,118330.0,118320.0,2.08700213]
[1755185568013,0.15188486,118330.0,118320.0,2.08700213]
[1755185568207,0.15188486,118330.0,118320.0,3.05907596]
[1755185568512,0.09231862,118330.0,118320.0,3.05907596]
[1755185568716,0.09231862,118330.0,118320.0,4.55907596]
[1755185569219,0.06833048,118330.0,118320.0,4.55907596]
[1755185569415,0.06833048,118330.0,118320.0,4.29177596]
[1755185569807,0.06833048,118330.0,118320.0,3.58700213]
[1755185570008,0.32973609,118330.0,118320.0,2.65424213]
[1755185570213,0.73123729,118330.0,118320.0,0.3658]
[1755185570412,0.65123729,118330.0,118320.0,1.29756]
[1755185570619,0.2541748,118340.0,118320.0,1.29756]
[1755185570816,0.37968901,118360.0,118330.0,0.40852]
[1755185571123,0.49968901,118360.0,118340.0,1.34016]
[1755185571317,0.58560012,118360.0,118350.0,0.93164]
[1755185571510,0.23204552,118360.0,118350.0,0.93164]
[1755185571820,0.40182952,118360.0,118350.0,0.93164]
[1755185572021,0.40182952,118360.0,118350.0,1.34016]
[1755185572223,0.40182952,118360.0,118350.0,0.97936]
[1755185572419,0.76262952,118360.0,118350.0,0.97936]
[1755185572721,0.76262952,118360.0,118350.0,0.98036]
[1755185572917,0.8304428,118360.0,118350.0,0.98036]
[1755185573125,0.8304428,118360.0,118350.0,0.001]
[1755185573320,0.8314428,118360.0,118350.0,0.93228]
[1755185573522,0.94082711,118360.0,118350.0,0.98]
[1755185573925,0.94002711,118360.0,118350.0,0.98]
[1755185574119,1.14002711,118360.0,118350.0,0.98]
[1755185574530,1.14082711,118360.0,118350.0,0.98]
[1755185575226,1.13982711,118360.0,118350.0,0.98]
[1755185575428,1.14102711,118360.0,118350.0,0.98]
[1755185576013,0.57822711,118360.0,118350.0,1.77242]
[1755185576324,0.57922711,118360.0,118350.0,2.47639383]
[1755185576824,0.21494769,118360.0,118350.0,2.56084083]
[1755185577032,0.09494769,118360.0,118350.0,2.56084083]
[1755185577224,0.15494769,118360.0,118350.0,2.56164083]
[1755185577424,0.15494769,118360.0,118350.0,2.56084083]
[1755185578020,0.09494769,118360.0,118350.0,2.56084083]
[1755185578421,0.35801275,118380.0,118370.0,0.48006]
[1755185578629,0.14881692,118380.0,118370.0,1.77138]
[1755185578826,0.14881692,118380.0,118370.0,1.8558127]
[1755185579023,0.15617842,118380.0,118370.0,2.92058653]
[1755185579221,0.15617842,118380.0,118370.0,2.83615383]
[1755185579422,0.24060392,118380.0,118370.0,2.83615383]
[1755185579623,0.16017842,118380.0,118370.0,2.83615383]
[1755185579827,0.16017842,118380.0,118370.0,2.92058653]
[1755185580333,0.15717842,118380.0,118370.0,2.92058653]
[1755185580626,0.15817842,118380.0,118370.0,2.92058653]
[1755185580829,0.0794615,118380.0,118370.0,2.92058653]
[1755185581125,0.0794615,118380.0,118370.0,2.92138653]
[1755185581126,0.12777299,118380.0,118370.0,2.92138653]
[1755185581325,0.01915383,118400.0,118380.0,0.4517023]
[1755185581629,0.01915383,118400.0,118390.0,2.91905223]
[1755185582115,0.02660736,118400.0,118390.0,2.83463383]
[1755185582321,0.02660736,118400.0,118390.0,2.91905233]
[1755185582621,0.04972778,118400.0,118390.0,2.91905233]
[1755185583120,0.04972778,118400.0,118390.0,1.20066]
[1755185583431,0.05072778,118400.0,118390.0,2.13026]
[1755185583621,0.13513908,118400.0,118390.0,2.13026]
[1755185583822,0.05072778,118400.0,118390.0,2.13026]
[1755185584223,0.13513918,118400.0,118390.0,2.13026]
[1755185584521,1.35810857,118400.0,118390.0,0.3618]
[1755185584725,1.35810857,118400.0,118370.0,0.3608]
[1755185584726,0.0844185,118390.0,118370.0,0.3608]
[1755185584921,0.0844185,118390.0,118370.0,1.57263]
[1755185584922,0.1843457,118380.0,118370.0,1.57263]
[1755185585125,0.25076612,118380.0,118370.0,1.57263]
[1755185585324,0.25076612,118380.0,118370.0,2.27660383]
[1755185585737,0.02312042,118380.0,118370.0,2.36103653]
[1755185586233,0.33057729,118400.0,118390.0,0.28243]
[1755185586526,0.41063243,118410.0,118390.0,1.65068]
[1755185586833,0.50813243,118410.0,118400.0,1.14121]
[1755185587029,0.52050688,118410.0,118400.0,1.14121]
[1755185587329,0.48402328,118410.0,118400.0,1.50193]
[1755185587529,0.48402328,118410.0,118400.0,1.14113]
[1755185588030,0.48402328,118410.0,118400.0,0.21217]
[1755185588226,0.48402328,118410.0,118400.0,1.14101]
[1755185588424,0.48402328,118410.0,118400.0,0.21217]
[1755185588632,2.03140972,118410.0,118400.0,0.92872]
[1755185588818,2.03060972,118410.0,118390.0,0.92864]
[1755185589019,0.69385528,118410.0,118400.0,0.001]
[1755185589224,1.05465528,118410.0,118400.0,0.001]
[1755185589420,0.85465528,118410.0,118400.0,0.001]
[1755185589725,1.58971711,118410.0,118400.0,0.001]
[1755185590027,0.88574328,118410.0,118400.0,0.001]
[1755185590534,0.98957913,118410.0,118400.0,0.001]
[1755185590730,1.24290143,118410.0,118390.0,0.3608]
[1755185590924,1.15949113,118410.0,118390.0,0.3608]
[1755185591326,0.95769113,118410.0,118390.0,0.40991]
[1755185591521,0.2532504,118400.0,118390.0,0.40991]
[1755185591721,0.3832504,118400.0,118390.0,0.3608]
[1755185591934,0.0844185,118390.0,118380.0,0.40991]
[1755185592132,0.25376764,118390.0,118380.0,0.40991]
[1755185592433,0.42271478,118390.0,118380.0,0.40991]
[1755185592629,0.3633625,118390.0,118380.0,0.40991]
[1755185593023,0.3633625,118390.0,118380.0,0.04911]
[1755185593532,0.3633625,118390.0,118380.0,0.75308383]
[1755185593737,0.3633625,118390.0,118380.0,1.11388383]
[1755185593934,0.3633625,118390.0,118380.0,1.33791]
[1755185594235,0.3633625,118390.0,118380.0,0.40991]
[1755185594430,0.3633625,118390.0,118380.0,1.33787]
[1755185594631,0.3633625,118390.0,118380.0,2.04384383]
[1755185594830,0.3633625,118390.0,118380.0,1.27894383]
[1755185595026,0.3633625,118390.0,118380.0,2.20674383]
[1755185595424,0.42271478,118390.0,118380.0,2.27700383]
[1755185596035,0.3633625,118390.0,118380.0,2.27700383]
[1755185596429,0.42271478,118390.0,118380.0,2.27700383]
[1755185598137,0.38549775,118390.0,118380.0,2.20854561]
[1755185598739,0.21655375,118390.0,118380.0,2.20854561]
[1755185600032,0.29108878,118390.0,118380.0,2.25765561]
[1755185600236,0.21655375,118390.0,118380.0,2.25765561]
[1755185600531,0.32309878,118390.0,118380.0,0.002]
[1755185600733,0.163136,118380.0,118370.0,1.28784]
[1755185600933,0.82953898,118410.0,118370.0,1.33695]
[1755185601128,0.0844249,118390.0,118380.0,0.3608]
[1755185601338,0.084426,118380.0,118370.0,0.3608]
[1755185601635,0.204426,118380.0,118370.0,1.29809383]
[1755185601830,0.204426,118380.0,118370.0,1.11388383]
[1755185602033,0.204426,118380.0,118370.0,0.3608]
[1755185602034,0.205226,118380.0,118370.0,0.3608]
[1755185602229,0.204426,118380.0,118370.0,1.11388383]
[1755185602434,0.88892707,118380.0,118370.0,1.11388383]
[1755185602637,0.204426,118380.0,118370.0,1.11388383]
[1755185602836,0.204426,118380.0,118370.0,0.75308383]
[1755185603542,0.204426,118380.0,118370.0,0.75408383]
[1755185603947,0.204426,118380.0,118370.0,0.04911]
[1755185604147,0.205426,118380.0,118370.0,0.75308383]
[1755185604347,0.206426,118380.0,118370.0,0.75308383]
[1755185605038,0.206426,118380.0,118370.0,0.93958383]
[1755185605241,0.206426,118380.0,118370.0,2.45465383]
[1755185605640,0.3376998,118390.0,118370.0,2.88168766]
[1755185605840,0.4476998,118390.0,118380.0,2.07783766]
[1755185606050,0.4476998,118390.0,118380.0,1.37386383]
[1755185606242,0.4476998,118390.0,118380.0,1.52808383]
[1755185607240,0.4486998,118390.0,118380.0,1.53008383]
[1755185607440,0.4496998,118390.0,118380.0,1.53008383]
[1755185607845,0.4496998,118390.0,118380.0,2.45648383]
[1755185608848,0.4486998,118390.0,118380.0,2.45648383]
[1755185609649,0.13724102,118390.0,118380.0,2.45648383]
[1755185609949,0.39051662,118390.0,118380.0,2.45648383]
[1755185610955,0.45024156,118390.0,118380.0,2.45648383]
[1755185611952,0.39051662,118390.0,118380.0,2.45564383]
[1755185612645,0.39051662,118390.0,118380.0,1.53008383]
[1755185612846,0.4101392,118390.0,118380.0,2.45560383]
[1755185613846,0.325714,118390.0,118380.0,2.45640383]
[1755185614054,0.09,118390.0,118380.0,3.16037766]
[1755185614250,0.0844143,118400.0,118390.0,0.46331]
[1755185614447,0.37413924,118400.0,118390.0,1.9522459]
[1755185614944,0.37413924,118400.0,118390.0,2.8774059]
[1755185615350,0.37413924,118400.0,118380.0,0.002]
[1755185615351,0.0844197,118390.0,118380.0,0.002]
[1755185615550,0.0844197,118390.0,118360.0,0.06944]
[1755185615551,0.3385258,118380.0,118360.0,0.06944]
[1755185615756,0.3385258,118380.0,118320.0,0.3608]
[1755185615757,0.5911416,118350.0,118320.0,0.3608]
[1755185615948,0.4452626,118330.0,118320.0,1.431872]
[1755185616147,0.4452626,118330.0,118320.0,1.69478001]
[1755185616148,0.5752626,118330.0,118320.0,1.69478001]
[1755185616352,0.0844698,118320.0,118310.0,0.92496]
[1755185616558,0.0844698,118320.0,118300.0,0.508922]
[1755185616559,0.0844769,118310.0,118300.0,0.508922]
[1755185616748,0.0844769,118310.0,118300.0,2.13781583]
[1755185616749,0.5785842,118310.0,118300.0,2.13781583]
[1755185617058,0.5785842,118310.0,118300.0,2.40072384]
[1755185617459,0.5785842,118310.0,118300.0,2.44926384]
[1755185617755,0.5785842,118310.0,118300.0,2.67789384]
[1755185617957,0.6152212,118320.0,118300.0,3.03869384]
[1755185618148,0.6552212,118320.0,118310.0,1.24325184]
[1755185618347,0.66825207,118320.0,118310.0,1.75008384]
[1755185618544,0.1689312,118330.0,118320.0,0.27637]
[1755185618848,0.3633998,118330.0,118320.0,2.52889184]
[1755185619043,0.01323385,118340.0,118330.0,0.27637]
[1755185619247,0.01323385,118340.0,118330.0,2.11168384]
[1755185619248,0.144456,118340.0,118330.0,2.11168384]
[1755185619458,0.0844505,118350.0,118330.0,1.83531384]
[1755185619645,0.3733566,118350.0,118340.0,0.62370801]
[1755185619850,0.0844554,118340.0,118330.0,1.13054001]
[1755185620058,0.4021854,118340.0,118330.0,1.35492]
[1755185620260,0.4021854,118340.0,118330.0,1.35392]
[1755185620452,0.4021854,118340.0,118330.0,1.61682801]
[1755185620652,0.4021854,118340.0,118330.0,1.25702801]
[1755185620857,0.8306954,118340.0,118330.0,0.06944]
[1755185621159,0.3599025,118330.0,118320.0,1.34615491]
[1755185621355,0.4699025,118330.0,118320.0,1.50454491]
[1755185621568,0.4699025,118330.0,118320.0,1.14374491]
[1755185621757,0.4021925,118330.0,118320.0,1.14374491]
[1755185621957,0.4021925,118330.0,118320.0,1.52262491]
[1755185622158,0.2436925,118330.0,118320.0,1.52262491]
[1755185622458,0.4021925,118330.0,118320.0,1.50454491]
[1755185622651,0.4699025,118330.0,118320.0,1.14374491]
[1755185622852,0.4699025,118330.0,118320.0,1.14354491]
[1755185623151,0.4709025,118330.0,118320.0,1.15054491]
[1755185623353,0.4709025,118330.0,118320.0,1.08975]
[1755185623746,0.4709025,118330.0,118320.0,1.09075]
[1755185624152,0.4709025,118330.0,118320.0,1.16019]
[1755185624350,0.8317025,118330.0,118320.0,0.008]
[1755185624556,1.53647633,118330.0,118320.0,1e-07]
[1755185624751,0.0844771,118310.0,118300.0,0.59072]
[1755185624949,0.4599171,118310.0,118300.0,0.22992]
[1755185625150,0.8207171,118310.0,118300.0,0.22992]
[1755185626863,0.8207171,118310.0,118300.0,0.23192]
[1755185627862,0.8207171,118310.0,118300.0,0.16248]
[1755185629066,0.8207171,118310.0,118300.0,0.16848]
[1755185629257,0.2922217,118290.0,118280.0,0.2141392]
[1755185629459,0.26428461,118290.0,118280.0,2.0236912]
[1755185629662,0.26428461,118290.0,118280.0,2.99137304]
[1755185629863,0.26428461,118290.0,118280.0,2.28739921]
[1755185630167,0.21505461,118290.0,118280.0,2.99137304]
[1755185630662,0.0844917,118290.0,118280.0,2.73246503]
[1755185630858,0.11,118290.0,118280.0,2.77115384]
[1755185631058,0.1,118290.0,118280.0,3.04752384]
[1755185631250,0.06,118290.0,118280.0,2.77115384]
[1755185631454,0.1689475,118320.0,118300.0,0.3626]
[1755185631759,0.2789475,118320.0,118310.0,2.25132184]
[1755185631958,0.2789475,118320.0,118310.0,2.76057384]
[1755185632866,0.3281775,118320.0,118310.0,2.76057384]
[1755185633268,0.3281775,118320.0,118310.0,2.75957384]
[1755185633458,0.3281775,118320.0,118310.0,1.83593384]
[1755185633663,0.5543875,118320.0,118310.0,1.28562]
[1755185633863,0.5543875,118320.0,118310.0,1.2862]
[1755185633864,0.5553875,118320.0,118310.0,1.2862]
[1755185634371,0.5543875,118320.0,118310.0,0.3598]
[1755185634558,0.5553875,118320.0,118310.0,0.3628]
[1755185634761,0.5573875,118320.0,118310.0,1.06919383]
[1755185635162,0.62421688,118320.0,118310.0,1.06919383]
[1755185635362,0.62421688,118320.0,118310.0,0.3628]
[1755185635762,0.62501688,118320.0,118310.0,0.3281162]
[1755185636471,0.62421688,118320.0,118310.0,1.03109003]
[1755185636765,0.39800688,118320.0,118310.0,2.46346203]
[1755185636958,0.34877688,118320.0,118310.0,2.72717004]
[1755185637764,0.24177,118340.0,118310.0,2.72717004]
[1755185637963,0.46499549,118340.0,118330.0,1.42799383]
[1755185638162,0.53180013,118340.0,118330.0,2.35087383]
[1755185638968,0.53180013,118340.0,118330.0,1.6469]
[1755185639669,0.53480013,118340.0,118330.0,1.6469]
[1755185639865,0.58336013,118340.0,118330.0,1.6469]
[1755185640077,0.58536013,118340.0,118330.0,1.6469]
[1755185640265,0.58536013,118340.0,118330.0,0.72402]
[1755185640574,0.64471203,118340.0,118330.0,0.72402]
[1755185641162,0.64271203,118340.0,118330.0,0.72402]
[1755185641363,0.58436013,118340.0,118330.0,0.72702]
[1755185642371,0.58436013,118340.0,118330.0,0.3638]
[1755185642672,1.62381201,118340.0,118330.0,0.3638]
[1755185642867,1.52481201,118340.0,118330.0,0.36622]
[1755185644070,1.52481201,118340.0,118330.0,0.3638]
[1755185644570,0.60241201,118340.0,118330.0,0.36622]
[1755185645179,0.66176391,118340.0,118330.0,0.36622]
[1755185645367,0.64299472,118340.0,118330.0,0.36622]
[1755185646375,0.58364282,118340.0,118330.0,0.36622]
[1755185646571,0.58364282,118340.0,118330.0,0.3638]
[1755185646963,2.12287837,118360.0,118330.0,0.3638]
[1755185647268,2.34287837,118360.0,118330.0,0.3638]
[1755185647577,1.15003053,118340.0,118330.0,0.003]
[1755185647775,2.26578777,118340.0,118330.0,0.003]
[1755185647978,1.66181394,118340.0,118330.0,0.003]
[1755185648165,1.30101394,118340.0,118330.0,0.003]
[1755185649279,1.36812929,118340.0,118330.0,0.003]
[1755185649673,1.53705379,118340.0,118330.0,0.001]
[1755185649881,1.43705379,118340.0,118330.0,0.001]
[1755185650181,1.36289655,118340.0,118320.0,0.4078]
[1755185650380,1.36489655,118340.0,118330.0,0.001]
[1755185650567,1.46489655,118340.0,118330.0,0.001]
[1755185650774,1.46409655,118340.0,118330.0,0.001]
[1755185650981,1.46409655,118340.0,118330.0,0.4088]
[1755185651283,1.44025379,118340.0,118330.0,0.4088]
[1755185651475,1.36609655,118340.0,118330.0,1.11277383]
[1755185651775,1.46609655,118340.0,118330.0,1.06577383]
[1755185652174,1.54025379,118340.0,118330.0,1.06577383]
[1755185652481,1.54025379,118340.0,118330.0,0.048]
[1755185652678,1.53825379,118340.0,118330.0,0.4088]
[1755185652880,0.51665379,118340.0,118330.0,1.35894383]
[1755185653184,0.44249655,118340.0,118330.0,1.35894383]
[1755185653379,0.51665379,118340.0,118330.0,1.35894383]
[1755185653682,0.44249655,118340.0,118330.0,0.84152]
[1755185653884,0.51665379,118340.0,118330.0,1.54549383]
[1755185654076,0.44249655,118340.0,118330.0,1.54849383]
[1755185654279,0.51665379,118340.0,118330.0,1.54849383]
[1755185654885,0.51665379,118340.0,118330.0,0.84452]
[1755185655084,0.51665379,118340.0,118330.0,1.54849383]
[1755185656282,0.51465379,118340.0,118330.0,2.31423384]
[1755185656475,0.51565379,118340.0,118330.0,2.31703384]
[1755185656679,0.44149655,118340.0,118330.0,2.31703384]
[1755185656879,0.44149655,118340.0,118330.0,2.31503384]
[1755185657079,0.50110378,118340.0,118330.0,2.31903384]
[1755185657385,0.50110378,118340.0,118330.0,2.32003384]
[1755185657586,0.50110378,118340.0,118330.0,2.13448384]